fUSD/lending_fUSD_20260224
["ID","MTS","AMOUNT","RATE_DAILY","PERIOD"]
[406569558,1771949449694,-1200.21212036,0.00017292,2]
[406569559,1771949449704,-659.0,0.00017528,2]
[406569560,1771949449715,-205.867103,0.00017666,7]
[406569561,1771949449724,-1413.37,0.00017728,2]
[406569562,1771949449733,-9999.99,0.00017728,2]
[406569563,1771949449742,-800.0,0.00017808,2]
[406569564,1771949449752,-500.0,0.0001791,4]
[406569565,1771949449761,-154.57529988,0.00018043,2]
[406569566,1771949449770,-151.0,0.00018043,2]
[406569567,1771949449779,-156.587,0.00018043,2]
[406569568,1771949449789,-693.3919763,0.00018043,2]
[406569569,1771949449799,-162.380719,0.00018043,2]
[406569570,1771949449808,-159.89501112,0.00018043,2]
[406569571,1771949449818,-719.04747942,0.00018098,2]
[406569572,1771949449826,-200.0,0.00018128,2]
[406569573,1771949449836,-745.65223616,0.00018153,2]
[406569574,1771949449845,-773.2413689,0.00018208,2]
[406569575,1771949449854,-313.09,0.00018232,2]
[406569576,1771949449863,-453.35,0.00018244,2]
[406569577,1771949449872,-169.2,0.00018259,2]
[406569578,1771949449881,-801.85129955,0.00018263,2]
[406569579,1771949449891,-831.51979763,0.00018318,2]
[406569580,1771949449900,-300.0,0.00018323,5]
[406569581,1771949449910,-1052.0,0.00018342,2]
[406569582,1771949449919,-453.35,0.00018396,2]
[406569583,1771949449930,-150.0,0.00018449,2]
[406569584,1771949449940,-1052.0,0.0001848,2]
[406569585,1771949449949,-453.35,0.00018549,2]
[406569586,1771949449958,-1052.0,0.00018604,2]
[406569587,1771949449967,-453.35,0.00018701,2]
[406569588,1771949449977,-1052.0,0.00018734,2]
[406569589,1771949449986,-1052.0,0.00018843,2]
[406569590,1771949449995,-453.35,0.00018853,2]
[406569591,1771949450003,-800.0,0.00018904,2]
[406569592,1771949450013,-1052.0,0.00018924,2]
[406569593,1771949450022,-350.0,0.00019,2]
[406569594,1771949450032,-160.0,0.00019,7]
[406569595,1771949450044,-453.35,0.00019005,2]
[406569596,1771949450053,-1052.0,0.00019028,2]
[406569597,1771949450062,-1052.0,0.00019069,2]
[406569598,1771949450071,-1052.0,0.00019074,2]
[406569599,1771949450081,-1052.0,0.00019096,2]
[406569600,1771949450091,-4800.44348195,0.00019097,2]
[406569601,1771949450101,-1052.0,0.0001913,2]
[406569602,1771949450111,-453.38619017,0.00019157,2]
[406569603,1771949450120,-1052.0,0.0001927,2]
[406569604,1771949450130,-1052.0,0.00019298,2]
[406569605,1771949450142,-1052.0,0.00019374,2]
[406569606,1771949450152,-1052.0,0.00019426,2]
[406569607,1771949450161,-549.94,0.00019517,2]
[406569608,1771949450171,-549.94,0.00019517,2]
[406569609,1771949450180,-549.94,0.00019517,2]
[406569610,1771949450189,-549.94,0.00019517,2]
[406569611,1771949450199,-549.95461346,0.00019517,2]
[406569612,1771949450208,-512.1,0.00019517,2]
[406569613,1771949450218,-512.1,0.00019517,2]
[406569614,1771949450226,-512.1,0.00019517,2]
[406569615,1771949450236,-512.1,0.00019517,2]
[406569616,1771949450245,-512.33,0.00019517,2]
[406569617,1771949450255,-657.39,0.00019517,2]
[406569618,1771949450265,-657.39,0.00019517,2]
[406569619,1771949450274,-657.39,0.00019517,2]
[406569620,1771949450283,-657.39,0.00019517,2]
[406569621,1771949450294,-657.4566601,0.00019517,2]
[406569622,1771949450304,-566.19,0.00019517,2]
[406569623,1771949450313,-566.19,0.00019517,2]
[406569624,1771949450323,-566.19,0.00019517,2]
[406569625,1771949450334,-566.19,0.00019517,2]
[406569626,1771949450344,-566.42459131,0.00019517,2]
[406569627,1771949450353,-1423.69,0.00019517,2]
[406569628,1771949450362,-1423.69,0.00019517,2]
[406569629,1771949450372,-1423.69,0.00019517,2]
[406569630,1771949450381,-1423.69,0.00019517,2]
[406569631,1771949450390,-1423.74528268,0.00019517,2]
[406569632,1771949450399,-917.0,0.00019517,2]
[406569633,1771949450408,-917.0,0.00019517,2]
[406569634,1771949450418,-917.0,0.00019517,2]
[406569635,1771949450427,-917.0,0.00019517,2]
[406569636,1771949450437,-917.17986232,0.00019517,2]
[406569637,1771949450447,-506.35812357,0.00019517,2]
[406569638,1771949450456,-1052.0,0.00019517,2]
[406569639,1771949450466,-1052.0,0.00019556,2]
[406569640,1771949450476,-1052.0,0.00019571,2]
[406569641,1771949450486,-1052.0,0.00019679,2]
[406569642,1771949450495,-1052.0,0.0001986,2]
[406569643,1771949450505,-320.0,0.0002,120]
[406569644,1771949450515,-320.0,0.0002,120]
[406569645,1771949450525,-1052.0,0.00020057,2]
[406569646,1771949450535,-1052.0,0.00020106,2]
[406569647,1771949450548,-1052.0,0.00020106,2]
[406569648,1771949450559,-1052.0,0.00020132,2]
[406569649,1771949450569,-1052.0,0.00020134,2]
[406569650,1771949450578,-327.10159771,0.00020395,2]
[406569651,1771949450588,-500.0,0.00020609,6]
[406569652,1771949450599,-166.66,0.00020928,2]
[406569653,1771949450609,-300.0,0.00020981,6]
[406569654,1771949450618,-400.0,0.00021,2]
[406569655,1771949450628,-159.62910539,0.00021261,2]
[406569656,1771949450641,-166.66,0.00021619,2]
[406569657,1771949450651,-14948.79,0.000222,2]
[406569658,1771949450661,-166.66,0.0002231,2]
[406569659,1771949450670,-168.86,0.00022552,7]
[406569660,1771949450682,-160.0,0.00023,2]
[406569661,1771949450691,-166.66,0.00023001,2]
[406569662,1771949450700,-500.0,0.00023309,9]
[406569663,1771949450709,-300.0,0.00023324,9]
[406569664,1771949450719,-264.77981393,0.00023657,11]
[406569665,1771949450728,-166.66,0.00023692,2]
[406569666,1771949450738,-313.09,0.00023783,2]
[406569667,1771949450748,-332.6088504,0.00023786,11]
[406569668,1771949450758,-169.2,0.00024145,2]
[406569669,1771949450767,-4800.44348195,0.00024367,2]
[406569670,1771949450777,-166.66,0.00024383,2]
[406569671,1771949450787,-1000.0,0.0002443,7]
[406569672,1771949450797,-150.0,0.00024478,10]
[406569673,1771949450806,-158.38200706,0.00024478,10]
[406569674,1771949450816,-515.21770091,0.0002448,12]
[406569675,1771949450825,-150.0,0.00024658,2]
[406569676,1771949450834,-553.66166931,0.00025173,13]
[406569677,1771949450845,-300.0,0.00025303,12]
[406569678,1771949450855,-314.22454394,0.00025499,21]
[406569679,1771949450865,-1437.60085125,0.00025763,2]
[406569680,1771949450874,-563.27266144,0.00025867,14]
[406569681,1771949450884,-150.0,0.0002589,2]
[406569682,1771949450894,-9419.55,0.00025956,2]
[406569683,1771949450903,-200.0,0.00025972,12]
[406569684,1771949450912,-500.0,0.00026008,11]
[406569685,1771949450922,-478.44908803,0.00026292,22]
[406569686,1771949450931,-592.10563782,0.00026561,15]
[406569687,1771949450940,-300.0,0.0002683,15]
[406569688,1771949450951,-5091.82984328,0.00027002,2]
[406569689,1771949450960,-487.28231524,0.00027002,2]
[406569690,1771949450971,-150.0,0.00027185,2]
[406569691,1771949450981,-630.54960633,0.00027254,17]
[406569692,1771949450990,-158.51345355,0.00027397,2]
[406569693,1771949451000,-300.0,0.00027666,17]
[406569694,1771949451010,-668.99357483,0.00027948,18]
[406569695,1771949451019,-518.50361316,0.00028441,18]
[406569696,1771949451029,-300.0,0.00028502,19]
[406569697,1771949451042,-150.0,0.00028544,2]
[406569698,1771949451051,-736.27051972,0.00028641,19]
[406569699,1771949451060,-500.0,0.00028708,14]
[406569700,1771949451070,-2000.0,0.00029,2]
[406569701,1771949451080,-554.74987019,0.00029125,19]
[406569702,1771949451089,-294.68215807,0.00029189,30]
[406569703,1771949451099,-793.93647248,0.00029335,20]
[406569704,1771949451108,-200.0,0.00029391,20]
[406569705,1771949451118,-289.36431614,0.00029408,30]
[406569706,1771949451127,-582.16985249,0.00029466,30]
[406569707,1771949451136,-4800.44348195,0.00029637,2]
[406569708,1771949451146,-289.36431614,0.00029682,30]
[406569709,1771949451156,-150.0,0.00029971,2]
[406569710,1771949451165,-241.13693012,0.00030011,30]
[406569711,1771949451175,-300.0,0.0003003,23]
[406569712,1771949451185,-152.0,0.00030416,3]
[406569713,1771949451194,-173.94,0.00030528,2]
[406569714,1771949451203,-677.24722004,0.00031053,30]
[406569715,1771949451212,-500.0,0.00031408,16]
[406569716,1771949451223,-150.0,0.0003147,2]
[406569717,1771949451232,-173.94,0.00031721,2]
[406569718,1771949451242,-808.47366941,0.00031858,24]
[406569719,1771949451251,-159.62910539,0.00031892,2]
[406569720,1771949451260,-164.01584354,0.00032,120]
[406569721,1771949451269,-184.7789246,0.00032,120]
[406569722,1771949451277,-167.15607918,0.00032,120]
[406569723,1771949451289,-1237.69,0.00032,120]
[406569724,1771949451298,-300.0,0.00032008,31]
[406569725,1771949451308,-152.0,0.00032043,4]
[406569726,1771949451317,-281.98489715,0.00032324,2]
[406569727,1771949451326,-815.54157284,0.00032639,30]
[406569728,1771949451335,-4959.0,0.00032681,5]
[406569729,1771949451344,-2000.0,0.000327,2]
[406569730,1771949451353,-2000.0,0.000327,2]
[406569731,1771949451362,-1255.26409456,0.00032803,25]
[406569732,1771949451371,-173.9358294,0.00032914,2]
[406569733,1771949451384,-164.01584354,0.00033,120]
[406569734,1771949451393,-167.15607918,0.00033,120]
[406569735,1771949451402,-176.0,0.00033,14]
[406569736,1771949451412,-150.0,0.00033043,2]
[406569737,1771949451421,-18054.75,0.000331,2]
[406569738,1771949451430,-911.61,0.000331,14]
[406569739,1771949451439,-905.13035483,0.00033225,26]
[406569740,1771949451448,-152.0,0.00033669,5]
[406569741,1771949451457,-3185.613,0.00033774,36]
[406569742,1771949451466,-275.499,0.00033774,36]
[406569743,1771949451475,-628.38,0.000338,14]
[406569744,1771949451484,-476.56,0.000338,14]
[406569745,1771949451494,-164.01584354,0.000339,120]
[406569746,1771949451506,-167.15607918,0.000339,120]
[406569747,1771949451515,-500.0,0.00034107,18]
[406569748,1771949451524,-300.0,0.00034352,38]
[406569749,1771949451533,-146303.0,0.000345,2]
[406569750,1771949451543,-150.0,0.00034612,2]
[406569751,1771949451552,-150.0,0.00034613,2]
[406569752,1771949451561,-150.0,0.00034614,2]
[406569753,1771949451570,-150.0,0.00034615,2]
[406569754,1771949451579,-150.0,0.00034616,2]
[406569755,1771949451588,-150.0,0.00034617,2]
[406569756,1771949451597,-150.0,0.00034618,2]
[406569757,1771949451606,-150.0,0.00034619,2]
[406569758,1771949451615,-150.0,0.0003462,2]
[406569759,1771949451624,-150.0,0.00034621,2]
[406569760,1771949451633,-150.0,0.00034622,2]
[406569761,1771949451644,-150.0,0.00034623,2]
[406569762,1771949451653,-206.290511,0.00034624,2]
[406569763,1771949451663,-150.0,0.00034696,2]
[406569764,1771949451671,-1500.0,0.00034795,2]
[406569765,1771949451682,-4800.44348195,0.00034907,2]
[406569766,1771949451691,-164.01584354,0.00035,120]
[406569767,1771949451700,-167.15607918,0.00035,120]
[406569768,1771949451709,-1092.13027844,0.00035019,30]
[406569769,1771949451719,-953.45869754,0.00035276,29]
[406569770,1771949451729,-152.0,0.00035296,6]
[406569771,1771949451738,-5531.0,0.000354,3]
[406569772,1771949451748,-1428.26195284,0.00035578,30]
[406569773,1771949451757,-2815.04997657,0.00035599,2]
[406569774,1771949451766,-2880.24181074,0.00035865,120]
[406569775,1771949451776,-846.0,0.00035865,120]
[406569776,1771949451785,-618.0,0.00035871,2]
[406569777,1771949451795,-3496.0,0.00035871,2]
[406569778,1771949451803,-1339.0,0.00035871,2]
[406569779,1771949451813,-1277.0,0.00035871,2]
[406569780,1771949451823,-150.597,0.00035871,2]
[406569781,1771949451832,-5405.0,0.00035871,2]
[406569782,1771949451842,-554.914,0.00035871,2]
[406569783,1771949451851,-3965.561,0.00035871,2]
[406569784,1771949451862,-200.0,0.000359,13]
[406569785,1771949451871,-469.1749961,0.00035919,2]
[406569786,1771949451880,-218.85582303,0.00036077,14]
[406569787,1771949451890,-14948.79,0.000361,2]
[406569788,1771949451900,-911.61,0.000361,14]
[406569789,1771949451909,-1428.26195284,0.00036271,30]
[406569790,1771949451918,-469.1749961,0.00036275,2]
[406569791,1771949451927,-5531.0,0.000363,5]
[406569792,1771949451936,-2000.0,0.000364,2]
[406569793,1771949451946,-18054.75,0.000364,2]
[406569794,1771949451955,-2000.0,0.000364,2]
[406569795,1771949451965,-150.0,0.0003643,2]
[406569796,1771949451975,-440.0,0.00036444,30]
[406569797,1771949451984,-465.0,0.00036444,30]
[406569798,1771949451993,-469.1749961,0.0003663,2]
[406569799,1771949452003,-953.45869754,0.00036642,30]
[406569800,1771949452012,-500.0,0.00036807,21]
[406569801,1771949452021,-209.0,0.000369,120]
[406569802,1771949452031,-152.0,0.00036923,7]
[406569803,1771949452042,-300.0,0.00037009,46]
[406569804,1771949452051,-181.61613088,0.000372,120]
[406569805,1771949452060,-1299.57180764,0.00037399,30]
[406569806,1771949452070,-476.56,0.000379,14]
[406569807,1771949452080,-911.61,0.000379,14]
[406569808,1771949452089,-1299.57180764,0.00038193,30]
[406569809,1771949452098,-150.0,0.00038252,2]
[406569810,1771949452108,-18054.75,0.000383,2]
[406569811,1771949452116,-152.0,0.0003855,8]
[406569812,1771949452126,-209.0,0.00038745,120]
[406569813,1771949452135,-618.0,0.00038871,2]
[406569814,1771949452144,-3496.0,0.00038871,2]
[406569815,1771949452153,-1339.0,0.00038871,2]
[406569816,1771949452162,-1277.0,0.00038871,2]
[406569817,1771949452171,-5405.0,0.00038871,2]
[406569818,1771949452179,-413.0,0.00038871,2]
[406569819,1771949452188,-398.25018667,0.00038891,2]
[406569820,1771949452198,-500.0,0.00039506,23]
[406569821,1771949452207,-150.369,0.00039557,2]
[406569822,1771949452216,-150.409,0.00039557,2]
[406569823,1771949452225,-173.628,0.00039557,2]
[406569824,1771949452234,-150.198,0.00039557,2]
[406569825,1771949452243,-267.735,0.00039557,2]
[406569826,1771949452252,-911.61,0.000396,14]
[406569827,1771949452261,-300.0,0.00039948,59]
[406569828,1771949452270,-202.69,0.00039998,7]
[406569829,1771949452279,-154.0,0.0004,120]
[406569830,1771949452289,-1507.1325067,0.0004,30]
[406569831,1771949452298,-173.87087054,0.0004,30]
[406569832,1771949452307,-173.87087054,0.0004,3]
[406569833,1771949452317,-6623.03809716,0.00040059,5]
[406569834,1771949452326,-2000.0,0.000401,2]
[406569835,1771949452335,-628.38,0.000401,14]
[406569836,1771949452343,-2000.0,0.000401,2]
[406569837,1771949452353,-150.0,0.00040165,2]
[406569838,1771949452363,-152.0,0.00040177,9]
[406569839,1771949452372,-4800.44348195,0.00040177,28]
[406569840,1771949452381,-476.56,0.000402,14]
[406569841,1771949452391,-18054.75,0.000402,30]
[406569842,1771949452400,-1299.57180764,0.00040573,30]
[406569843,1771949452409,-209.0,0.00040682,120]
[406569844,1771949452418,-30720.69031569,0.00040977,7]
[406569845,1771949452428,-300.0,0.00040984,2]
[406569846,1771949452442,-301.55927827,0.00040984,2]
[406569847,1771949452452,-443.65842661,0.00040984,2]
[406569848,1771949452461,-300.0,0.00040984,2]
[406569849,1771949452471,-301.55927827,0.00040984,2]
[406569850,1771949452480,-6975.45126551,0.00041,30]
[406569851,1771949452490,-83084.0,0.00041053,60]
[406569852,1771949452499,-151.0,0.00041053,120]
[406569853,1771949452508,-151.0,0.00041053,120]
[406569854,1771949452518,-240.832695,0.00041096,120]
[406569855,1771949452529,-233.949522,0.00041096,120]
[406569856,1771949452540,-154.0,0.000413,120]
[406569857,1771949452552,-152.0,0.00041803,10]
[406569858,1771949452570,-5405.0,0.00041871,2]
[406569859,1771949452579,-413.0,0.00041871,2]
[406569860,1771949452589,-150.0,0.00042173,120]
[406569861,1771949452599,-500.0,0.00042206,26]
[406569862,1771949452609,-83084.0,0.00042406,60]
[406569863,1771949452619,-800.29,0.00042546,120]
[406569864,1771949452630,-527.94,0.00042546,30]
[406569865,1771949452640,-154.0,0.000426,120]
[406569866,1771949452652,-209.0,0.00042716,120]
[406569867,1771949452663,-500.0,0.00042747,2]
[406569868,1771949452675,-1437.60085125,0.00042968,120]
[406569869,1771949452685,-14948.79,0.00043,2]
[406569870,1771949452695,-200.0,0.00043068,120]
[406569871,1771949452704,-200.0,0.00043068,120]
[406569872,1771949452867,-300.0,0.00043143,81]
[406569873,1771949452877,-1613.931096,0.0004332,2]
[406569874,1771949452887,-18054.75,0.000434,30]
[406569875,1771949452897,-350.0,0.00043424,3]
[406569876,1771949452906,-152.0,0.0004343,11]
[406569877,1771949452916,-1640.3,0.00043556,2]
[406569878,1771949452925,-476.56,0.000436,14]
[406569879,1771949452935,-251.0,0.00043626,120]
[406569880,1771949452945,-661.35009067,0.00043749,7]
[406569881,1771949452955,-787.713897,0.00043759,28]
[406569882,1771949452964,-787.713897,0.00043759,28]
[406569883,1771949452974,-787.713897,0.00043759,28]
[406569884,1771949452984,-787.713897,0.00043759,28]
[406569885,1771949452994,-83084.0,0.00043759,60]
[406569886,1771949453004,-2000.0,0.000438,2]
[406569887,1771949453014,-2000.0,0.000438,2]
[406569888,1771949453023,-156.34,0.00043836,120]
[406569889,1771949453033,-126049.27001494,0.000439,2]
[406569890,1771949453044,-151.0,0.000439,120]
[406569891,1771949453054,-17967.81021521,0.000439,15]
[406569892,1771949453064,-303.425468,0.000439,120]
[406569893,1771949453074,-303.425468,0.000439,120]
[406569894,1771949453084,-303.425468,0.000439,120]
[406569895,1771949453093,-303.425468,0.000439,120]
[406569896,1771949453104,-151.0,0.000439,120]
[406569897,1771949453116,-151.0,0.000439,120]
[406569898,1771949453134,-151.0,0.000439,120]
[406569899,1771949453144,-151.0,0.000439,120]
[406569900,1771949453154,-185255.2097039,0.00043925,2]
[406569901,1771949453165,-32415.1989475,0.00043925,2]
[406569902,1771949453175,-593381.7714458,0.00043925,2]
[406569903,1771949453186,-158.495202,0.00043925,120]
[406569904,1771949453196,-158.495202,0.00043925,120]
[406569905,1771949453206,-158.495202,0.00043925,120]
[406569906,1771949453217,-158.495202,0.00043925,120]
[406569907,1771949453228,-500.35,0.00043925,120]
[406569908,1771949453239,-500.35,0.00043925,120]
[406569909,1771949453249,-500.35,0.00043925,120]
[406569910,1771949453260,-500.35,0.00043925,120]
[406569911,1771949453271,-151.0,0.00043925,7]
[406569912,1771949453281,-168.0,0.00043949,120]
[406569913,1771949453292,-286.31768983,0.00043958,30]
[406569914,1771949453302,-500.0,0.00043958,60]
[406569915,1771949453313,-1000.0,0.00044,120]
[406569916,1771949453323,-154.0,0.00044,120]
[406569917,1771949453334,-25000.0,0.00044044,15]
[406569918,1771949453344,-25000.0,0.00044053,15]
[406569919,1771949453355,-350.0,0.0004406,5]
[406569920,1771949453366,-150.0,0.00044158,120]
[406569921,1771949453376,-2858.18490911,0.00044201,2]
[406569922,1771949453386,-200.0,0.00044256,7]
[406569923,1771949453396,-151.0,0.00044256,30]
[406569924,1771949453406,-151.0,0.00044256,30]
[406569925,1771949453416,-150.0,0.00044281,120]
[406569926,1771949453426,-216.99354401,0.00044317,15]
[406569927,1771949453436,-628.38,0.000444,14]
[406569928,1771949453446,-57859.62775656,0.0004444,120]
[406569929,1771949453457,-151.0,0.0004444,120]
[406569930,1771949453467,-167.200014,0.0004444,120]
[406569931,1771949453478,-18054.75,0.000445,30]
[406569932,1771949453487,-321.81300984,0.00044547,120]
[406569933,1771949453496,-474.61,0.000446,120]
[406569934,1771949453506,-476.56,0.000446,14]
[406569935,1771949453515,-200.0,0.00044699,7]
[406569936,1771949453525,-55626.37610751,0.000447,30]
[406569937,1771949453534,-209.0,0.00044852,120]
[406569938,1771949453544,-350.0,0.00044861,4]
[406569939,1771949453555,-5405.0,0.00044871,2]
[406569940,1771949453568,-413.0,0.00044871,2]
[406569941,1771949453586,-500.0,0.00044905,28]
[406569942,1771949453601,-4626.87,0.00044932,120]
[406569943,1771949453612,-98699.65684061,0.0004498,30]
[406569944,1771949453624,-4038.23362235,0.00045,120]
[406569945,1771949453634,-5603.22694015,0.00045,120]
[406569946,1771949453646,-50555.45886113,0.00045,120]
[406569947,1771949453660,-1871.2415,0.00045,2]
[406569948,1771949453672,-1252.51464653,0.00045,10]
[406569949,1771949453688,-2000.0,0.00045,120]
[406569950,1771949453697,-2948.0,0.00045,30]
[406569951,1771949453708,-150.0,0.00045056,30]
[406569952,1771949453717,-500.24398193,0.00045056,30]
[406569953,1771949453727,-150.0,0.00045056,30]
[406569954,1771949453738,-3161.20814662,0.00045056,30]
[406569955,1771949453748,-150.0,0.00045056,30]
[406569956,1771949453757,-198.20235507,0.00045056,30]
[406569957,1771949453766,-152.0,0.00045057,12]
[406569958,1771949453776,-284.49243142,0.00045068,120]
[406569959,1771949453786,-150.0,0.00045068,120]
[406569960,1771949453796,-150.0,0.00045068,120]
[406569961,1771949453806,-178.51167837,0.00045068,120]
[406569962,1771949453815,-155.51282354,0.00045068,120]
[406569963,1771949453824,-500.0,0.00045068,120]
[406569964,1771949453834,-500.0,0.00045068,120]
[406569965,1771949453844,-500.0,0.00045068,120]
[406569966,1771949453853,-150.0,0.00045068,120]
[406569967,1771949453863,-500.0,0.00045068,120]
[406569968,1771949453874,-500.0,0.00045068,120]
[406569969,1771949453884,-648.05114672,0.00045068,120]
[406569970,1771949453895,-150.0,0.00045068,120]
[406569971,1771949453904,-277.65171186,0.00045068,120]
[406569972,1771949453914,-2705.0,0.00045068,2]
[406569973,1771949453925,-2705.0,0.00045068,2]
[406569974,1771949453934,-2705.0,0.00045068,2]
[406569975,1771949453944,-2705.0,0.00045068,2]
[406569976,1771949453953,-2705.0,0.00045068,2]
[406569977,1771949453963,-2705.0,0.00045068,2]
[406569978,1771949453973,-2705.0,0.00045068,2]
[406569979,1771949453983,-2705.0,0.00045068,2]
[406569980,1771949453993,-2705.0,0.00045068,2]
[406569981,1771949454003,-2705.0,0.00045068,2]
[406569982,1771949454014,-2705.0,0.00045068,2]
[406569983,1771949454024,-2705.0,0.00045068,2]
[406569984,1771949454034,-2705.0,0.00045068,2]
[406569985,1771949454046,-2705.0,0.00045068,2]
[406569986,1771949454056,-2705.0,0.00045068,2]
[406569987,1771949454066,-2705.0,0.00045068,2]
[406569988,1771949454077,-2705.0,0.00045068,2]
[406569989,1771949454088,-2705.0,0.00045068,2]
[406569990,1771949454103,-2705.0,0.00045068,2]
[406569991,1771949454125,-2705.0,0.00045068,2]
[406569992,1771949454146,-2705.0,0.00045068,2]
[406569993,1771949454158,-2705.0,0.00045068,2]
[406569994,1771949454168,-2705.0,0.00045068,2]
[406569995,1771949454178,-2722.15498182,0.00045068,2]
[406569996,1771949454187,-500.0,0.00045068,120]
[406569997,1771949454197,-500.0,0.00045068,120]
[406569998,1771949454206,-507.10875232,0.00045068,120]
[406569999,1771949454216,-150.0,0.00045068,120]
[406570000,1771949454225,-150.0,0.00045068,120]
[406570001,1771949454234,-150.0,0.00045068,60]
[406570002,1771949454243,-150.0,0.00045068,60]
[406570003,1771949454253,-253.43383125,0.00045068,60]
[406570004,1771949454262,-150.0,0.00045068,120]
[406570005,1771949454272,-150.0,0.00045068,120]
[406570006,1771949454283,-286.85001945,0.00045068,120]
[406570007,1771949454295,-240.15036897,0.00045068,60]
[406570008,1771949454305,-500.0,0.00045068,120]
[406570009,1771949454314,-500.0,0.00045068,120]
[406570010,1771949454324,-500.0,0.00045068,120]
[406570011,1771949454334,-570.07503716,0.00045068,120]
[406570012,1771949454343,-14948.79,0.000451,2]
[406570013,1771949454353,-83084.0,0.00045113,60]
[406570014,1771949454362,-787.713897,0.00045113,28]
[406570015,1771949454371,-787.713897,0.00045113,28]
[406570016,1771949454380,-787.713897,0.00045113,28]
[406570017,1771949454390,-787.713897,0.00045113,28]
[406570018,1771949454400,-155.52794573,0.00045124,120]
[406570019,1771949454410,-911.61,0.000452,14]
[406570020,1771949454419,-150.0,0.00045205,120]
[406570021,1771949454430,-432.27,0.00045205,120]
[406570022,1771949454444,-150.0,0.00045205,120]
[406570023,1771949454453,-350.0,0.00045225,2]
[406570024,1771949454463,-150.76821537,0.0004526,2]
[406570025,1771949454472,-154.0,0.000453,120]
[406570026,1771949454481,-541.38186834,0.00045358,60]
[406570027,1771949454490,-18054.75,0.000454,30]
[406570028,1771949454499,-4800.44348195,0.00045447,28]
[406570029,1771949454508,-5091.82984328,0.00045447,2]
[406570030,1771949454517,-487.28231524,0.00045447,2]
[406570031,1771949454527,-500.0,0.00045479,2]
[406570032,1771949454536,-500.0,0.00045479,2]
[406570033,1771949454548,-500.0,0.00045479,2]
[406570034,1771949454557,-500.0,0.00045479,2]
[406570035,1771949454567,-500.0,0.00045479,2]
[406570036,1771949454577,-500.0,0.00045479,2]
[406570037,1771949454589,-403.45418595,0.00045479,2]
[406570038,1771949454600,-7562.9188406,0.000455,120]
[406570039,1771949454610,-628.38,0.000455,14]
[406570040,1771949454619,-213.594063,0.000455,120]
[406570041,1771949454630,-200.0,0.000455,16]
[406570042,1771949454641,-600.0,0.00045502,120]
[406570043,1771949454653,-150.0,0.00045534,30]
[406570044,1771949454662,-150.0,0.00045534,30]
[406570045,1771949454672,-150.0,0.00045534,30]
[406570046,1771949454683,-150.0,0.00045534,30]
[406570047,1771949454691,-150.0,0.00045534,30]
[406570048,1771949454701,-150.0,0.00045534,30]
[406570049,1771949454710,-150.78067952,0.00045534,30]
[406570050,1771949454720,-150.91920927,0.00045534,30]
[406570051,1771949454729,-150.0,0.00045534,30]
[406570052,1771949454739,-150.0,0.00045534,30]
[406570053,1771949454748,-150.0,0.00045534,30]
[406570054,1771949454757,-150.0,0.00045534,30]
[406570055,1771949454767,-150.0,0.00045534,30]
[406570056,1771949454777,-50000.0,0.00045546,60]
[406570057,1771949454786,-50000.0,0.00045546,61]